bitfinex-derivatives/quotes_SOLF0:USTF0_20241015
["timestamp","ask_amount","ask_price","bid_price","bid_amount"]
[1729003306062,44.11,152.65,152.48,1.3944]
[1729003306255,3.2762,152.63,152.53,3.278]
[1729003306456,44.11,152.62,152.48,1.3944]
[1729003306651,44.11,152.62,152.42,1.2989]
[1729003306856,3.2784,152.52,152.43,3.2803]
[1729003307056,44.11,152.61,152.41,44.11]
[1729003307253,44.11,152.57,152.41,44.11]
[1729003307451,44.11,152.54,152.4,4.5998]
[1729003307652,44.11,152.47,152.28,70.84]
[1729003307856,44.11,152.5,152.29,45.429]
[1729003308159,44.11,152.51,152.34,44.11]
[1729003308361,3.2793,152.48,152.38,3.2812]
[1729003308554,44.11,152.51,152.34,44.11]
[1729003309360,44.11,152.55,152.38,44.11]
[1729003309567,44.11,152.54,152.34,44.11]
[1729003310052,44.11,152.58,152.38,44.11]
[1729003310458,3.2167465,152.6,152.41,44.11]
[1729003310659,44.11,152.58,152.38,44.11]
[1729003311267,114.97,152.61,152.41,44.11]
[1729003311565,3.2769,152.59,152.45,44.11]
[1729003311762,44.11,152.61,152.41,70.86]
[1729003311959,44.11,152.61,152.42,1.4165]
[1729003312360,44.11,152.57,152.43,1.4128]
[1729003312760,44.11,152.65,152.44,44.11]
[1729003312959,44.11,152.61,152.44,44.11]
[1729003313164,44.11,152.65,152.44,44.11]
[1729003313362,44.11,152.64,152.44,44.11]
[1729003313562,44.11,152.61,152.43,1.4128]
[1729003314060,3.2775,152.56,152.49,3.2789]
[1729003314262,44.11,152.61,152.43,1.4128]
[1729003315261,3.2775,152.57,152.5,3.2788]
[1729003315462,44.11,152.64,152.44,44.11]
[1729003315661,44.11,152.61,152.43,1.4128]
[1729003315869,44.11,152.55,152.42,1.4165]
[1729003316063,44.11,152.51,152.42,1.4165]
[1729003316265,44.11,152.48,152.31,1.3512]
[1729003316463,44.11,152.48,152.31,2.766]
[1729003316659,44.11,152.45,152.31,1.4148]
[1729003316863,3.2803,152.43,152.36,3.2816]
[1729003317065,44.11,152.48,152.29,44.11]
[1729003317261,44.11,152.44,152.25,44.11]
[1729003317466,44.11,152.4,152.24,2.766]
[1729003317865,9.338,152.53,152.17,3.2857]
[1729003317866,41.02,152.25,152.17,3.2857]
[1729003318063,41.02,152.25,152.18,1.2068661]
[1729003318268,41.02,152.2,152.09,1.3162]
[1729003318465,41.02,152.28,152.1,3.2874]
[1729003318466,41.02,152.17,152.1,3.2874]
[1729003318768,41.02,152.25,152.1,41.02]
[1729003318966,1.3276,152.39,152.18,41.02]
[1729003319164,41.02,152.37,152.23,41.02]
[1729003319570,41.02,152.39,152.3,3.2831]
[1729003319772,41.02,152.31,152.19,41.02]
[1729003319964,44.16,152.36,152.16,44.16]
[1729003320163,3.2819,152.36,152.25,3.284]
[1729003320462,338.8484,152.58,152.16,3.33399053]
[1729003320463,44.16,152.47,152.27,44.16]
[1729003320665,3.2815,152.38,152.28,3.2834]
[1729003320864,44.16,152.35,152.13,1.36]
[1729003321065,44.16,152.35,152.16,44.16]
[1729003321376,44.16,152.35,152.17,4.5280585]
[1729003321568,44.16,152.32,152.17,1.20665573]
[1729003321768,3.2843,152.25,152.17,1.20665573]
[1729003322073,44.16,152.28,152.17,1.20665573]
[1729003322269,44.16,152.28,152.13,1.36]
[1729003322473,44.16,152.24,152.09,1.3162]
[1729003322769,70.88,152.28,152.09,1.3162]
[1729003322770,115.04,152.28,152.09,1.3162]
[1729003322971,44.16,152.35,152.16,44.16]
[1729003323363,70.88,152.37,152.17,1.3836]
[1729003323568,44.16,152.46,152.24,44.16]
[1729003323767,3.2795,152.47,152.39,3.2811]
[1729003324069,70.9,152.55,152.34,44.16]
[1729003324275,6.5497,152.69,152.25,45.4754]
[1729003324276,341.0,152.75,152.42,44.16]
[1729003324467,6.558,152.91,152.43,1.3056]
[1729003324468,44.16,152.64,152.43,1.3056]
[1729003324769,44.16,152.6,152.43,1.3056]
[1729003324974,44.16,152.57,152.43,1.3056]
[1729003325274,44.16,152.6,152.43,45.4656]
[1729003325662,3.25703417,152.68,152.46,44.16]
[1729003325663,44.16,152.64,152.46,44.16]
[1729003325868,44.16,152.61,152.43,45.4656]
[1729003326064,44.16,152.57,152.43,1.3056]
[1729003326373,3.2782,152.53,152.43,1.3056]
[1729003326572,44.16,152.57,152.35,1.4118]
[1729003326573,44.16,152.5,152.35,1.4118]
[1729003326767,70.88,152.58,152.35,1.4118]
[1729003326970,70.88,152.58,152.35,45.5718]
[1729003326971,44.16,152.53,152.35,45.5718]
[1729003327164,70.88,152.58,152.35,45.5718]
[1729003327165,44.16,152.52,152.35,45.5718]
[1729003327571,44.16,152.63,152.42,44.16]
[1729003327770,2.699,152.68,152.49,44.16]
[1729003327771,1.358,152.68,152.49,44.16]
[1729003327966,45.5906,152.72,152.54,3.2779]
[1729003328172,45.5906,152.72,152.53,44.16]
[1729003328373,44.16,152.76,152.56,44.16]
[1729003328570,47.4104755,152.8,152.57,1.3161]
[1729003328779,44.16,152.71,152.57,1.3161]
[1729003328988,44.16,152.67,152.57,1.3161]
[1729003329178,44.16,152.71,152.57,1.3161]
[1729003329371,44.16,152.75,152.57,1.3161]
[1729003329576,3.274,152.73,152.57,1.3161]
[1729003329776,115.04,152.82,152.61,44.16]
[1729003330080,1.4306,152.88,152.64,44.16]
[1729003330284,3.2733,152.76,152.65,3.2755]
[1729003330580,44.16,152.8,152.62,1.0]
[1729003330772,44.16,152.69,152.62,1.0]
[1729003330976,19.64,152.84,152.56,44.16]
[1729003331180,70.86,152.85,152.56,44.16]
[1729003331181,44.16,152.78,152.56,44.16]
[1729003331370,3.2738,152.74,152.59,44.16]
[1729003331682,44.16,152.74,152.58,1.296]
[1729003331978,44.16,152.76,152.58,1.296]
[1729003332174,70.86,152.75,152.28,6.5669]
[1729003332370,3.278,152.54,152.43,3.2801]
[1729003332574,44.16,152.64,152.44,44.16]
[1729003332781,72.1825,152.74,152.4,48.72333077]
[1729003332986,44.16,152.63,152.44,44.16]
[1729003333373,44.16,152.63,152.53,3.2781]
[1729003333579,44.16,152.63,152.45,70.84]
[1729003333777,44.16,152.66,152.45,70.84]
[1729003333978,44.16,152.66,152.47,44.16]
[1729003334173,44.16,152.66,152.48,3.31302375]
[1729003334385,44.16,152.63,152.45,70.84]
[1729003334783,44.16,152.59,152.45,70.84]
[1729003334984,44.16,152.59,152.4,1.3355]
[1729003335185,44.16,152.59,152.41,1.3666]
[1729003335487,1.4306,152.73,152.41,1.3666]
[1729003335488,44.16,152.49,152.41,1.3666]
[1729003335677,44.16,152.56,152.41,1.3666]
[1729003335873,44.16,152.76,152.41,1.3666]
[1729003335874,44.16,152.59,152.41,1.3666]
[1729003336182,3.2771,152.59,152.42,44.16]
[1729003336484,44.16,152.63,152.42,48.85961747]
[1729003336679,3.2758,152.64,152.54,3.2779]
[1729003336885,44.16,152.7,152.5,44.16]
[1729003337086,116.3025,152.74,152.54,44.16]
[1729003337280,44.16,152.74,152.55,45.4959]
[1729003337483,44.16,152.74,152.56,1.4231]
[1729003337780,44.16,152.82,152.62,44.16]
[1729003337980,1.08856371,152.81,152.62,44.16]
[1729003338177,44.16,152.74,152.57,1.2922]
[1729003338379,44.16,152.78,152.58,44.16]
[1729003338576,1.08948513,152.77,152.58,47.38392557]
[1729003338775,44.16,152.78,152.58,47.38392557]
[1729003338983,44.16,152.81,152.62,44.16]
[1729003339280,1.09006495,152.8,152.65,44.16]
[1729003339485,1.09006495,152.8,152.66,44.16]
[1729003339784,1.09006495,152.8,152.66,47.49071278]
[1729003339981,1.09006495,152.8,152.71,3.2743]
[1729003340184,44.16,152.85,152.66,47.43142295]
[1729003340377,44.16,152.78,152.63,1.0]
[1729003340682,44.16,152.78,152.62,70.8]
[1729003340885,3.2742,152.72,152.64,3.2756]
[1729003341082,44.16,152.78,152.59,44.16]
[1729003341584,70.8,152.91,152.54,70.8]
[1729003341585,44.16,152.75,152.55,45.4959]
[1729003341791,44.16,152.71,152.55,1.3359]
[1729003342085,40.91,152.68,152.55,1.3359]
[1729003342384,40.91,152.65,152.55,1.3359]
[1729003342585,40.91,152.63,152.55,1.3359]
[1729003343085,40.91,152.76,152.55,1.3359]
[1729003343086,40.91,152.7,152.55,1.3359]
[1729003343384,40.91,152.76,152.6,40.91]
[1729003343591,40.91,152.76,152.63,40.91]
[1729003343785,40.91,152.73,152.61,1.4095]
[1729003343984,44.06,152.72,152.61,1.4095]
[1729003344179,3.275,152.68,152.62,3.2762]
[1729003344382,70.78,152.85,152.61,1.4095]
[1729003344383,44.06,152.76,152.61,1.4095]
[1729003344583,3.2736,152.75,152.62,3.2762]
[1729003344885,44.06,152.76,152.61,1.4095]
[1729003345285,44.06,152.8,152.61,1.4095]
[1729003346184,3.2739,152.74,152.65,3.2754]
[1729003346491,44.06,152.8,152.61,1.4095]
[1729003346683,3.273,152.77,152.69,3.2747]
[1729003346886,44.06,152.81,152.61,1.4095]
[1729003347084,44.06,152.77,152.61,1.4095]
[1729003347283,44.06,152.73,152.62,3.2762]
[1729003347485,44.06,152.73,152.61,1.4095]
[1729003347686,3.2747,152.7,152.62,3.2762]
[1729003347882,44.06,152.73,152.61,1.4095]
[1729003348997,70.78,152.85,152.61,1.4095]
[1729003349191,44.06,152.76,152.61,1.4095]
[1729003349589,70.78,152.85,152.61,45.4695]
[1729003349590,44.06,152.8,152.61,45.4695]
[1729003349989,1.08563784,152.79,152.61,45.4695]
[1729003350198,46.23161197,152.84,152.65,44.06]
[1729003350403,3.2722,152.81,152.73,3.2737]
[1729003350699,44.06,152.77,152.67,1.4043]
[1729003350896,44.06,152.73,152.61,1.4095]
[1729003351494,44.06,152.7,152.59,1.3884]
[1729003351693,70.74,152.79,152.59,1.3884]
[1729003351892,44.06,152.69,152.53,2.7506]
[1729003352098,44.06,152.69,152.53,2.7262]
[1729003352400,3.2746,152.7,152.53,2.7262]
[1729003352598,44.06,152.72,152.53,2.7262]
[1729003352896,44.06,152.65,152.53,2.7262]
[1729003353097,114.8,152.79,152.43,1.4128]
[1729003353098,44.06,152.62,152.43,1.4128]
[1729003353395,3.2772,152.58,152.48,3.2791]
[1729003353600,44.06,152.62,152.41,114.8]
[1729003353798,2.7575,152.67,152.49,44.06]
[1729003353998,3.2758,152.65,152.49,44.06]
[1729003354202,44.06,152.63,152.42,44.06]
[1729003354398,1.3584,152.67,152.41,74.03366004]
[1729003354399,44.06,152.59,152.41,70.74]
[1729003354600,44.06,152.5,152.31,70.76]
[1729003354900,44.06,152.63,152.31,70.76]
[1729003354901,44.06,152.46,152.31,70.76]
[1729003355199,44.06,152.48,152.31,70.76]
[1729003355597,3.2799,152.46,152.31,70.76]
[1729003355798,44.06,152.48,152.31,70.76]
[1729003355994,44.06,152.41,152.11,49.83663019]
[1729003356193,70.76,152.46,152.29,3.2832]
[1729003356498,1.328,152.47,152.29,44.06]
[1729003356701,1.328,152.47,152.33,44.06]
[1729003357098,1.328,152.47,152.25,70.8]
[1729003357300,1.328,152.47,152.28,44.06]
[1729003357498,44.06,152.46,152.28,44.06]
[1729003357699,3.2802,152.44,152.34,3.2821]
[1729003357899,1.328,152.47,152.32,44.06]
[1729003358106,1.328,152.47,152.28,44.06]
[1729003358599,1.328,152.47,152.32,44.06]
[1729003358810,3.2799,152.45,152.36,3.2816]
[1729003359005,3.2799,152.45,152.32,44.06]
[1729003359006,1.328,152.47,152.32,44.06]
[1729003359204,1.328,152.47,152.36,44.06]
[1729003359403,60.424,152.79,152.46,3.2796]
[1729003359404,3.2777,152.55,152.46,3.2796]
[1729003359705,44.06,152.61,152.38,44.06]
[1729003359904,3.2784,152.52,152.43,3.2802]
[1729003360097,44.06,152.61,152.42,44.06]
[1729003360298,70.8,152.64,152.42,44.06]
[1729003360500,70.8,152.64,152.47,3.2794]
[1729003360703,44.06,152.65,152.46,44.06]
[1729003360908,44.06,152.61,152.42,44.06]
[1729003361109,3.2782,152.53,152.43,3.2803]
[1729003361299,44.06,152.57,152.39,44.06]
[1729003361708,44.06,152.57,152.36,70.84]
[1729003361709,1.3151,152.58,152.42,44.06]
[1729003361908,1.3151,152.58,152.45,44.06]
[1729003362102,3.2773,152.58,152.48,3.2791]
[1729003362412,70.84,152.63,152.45,44.06]
[1729003362601,3.2782,152.53,152.45,47.3399]
[1729003362806,70.84,152.63,152.45,44.06]
[1729003363110,3.2774,152.57,152.49,44.06]
[1729003363312,70.84,152.63,152.49,44.06]
[1729003363523,1.4147,152.65,152.52,44.06]
[1729003363707,1.3264,152.67,152.52,44.06]
[1729003363905,44.06,152.65,152.47,70.84]
[1729003364509,1.3264,152.67,152.49,44.06]
[1729003364812,3.276,152.64,152.56,3.2775]
[1729003365013,1.2989,152.73,152.56,44.06]
[1729003365221,1.2989,152.8,152.56,3.32196497]
[1729003365511,1.07945303,152.72,152.59,44.06]
[1729003365822,41.99945303,152.79,152.65,40.92]
[1729003366108,40.92,152.79,152.65,40.92]
[1729003366410,3.2744,152.71,152.65,40.92]
[1729003366716,40.92,152.77,152.63,40.92]
[1729003366912,3.2747,152.69,152.63,40.92]
[1729003367104,40.92,152.79,152.65,40.92]
[1729003367408,1.2989,152.8,152.7,40.92]
[1729003367617,40.92,152.84,152.7,40.92]
[1729003368012,2.642,152.87,152.73,40.92]
[1729003368307,40.92,152.82,152.67,40.92]
[1729003368514,3.2732,152.77,152.7,44.1945]
[1729003368702,40.92,152.82,152.68,40.92]
[1729003368907,40.92,152.8,152.65,40.92]
[1729003369112,40.92,152.77,152.65,40.92]
[1729003369308,40.92,152.8,152.68,40.92]
[1729003369503,40.92,152.85,152.73,40.92]
[1729003369710,1.0789828,152.84,152.73,40.92]
[1729003369910,40.92,152.82,152.63,70.82]
[1729003370115,3.2735,152.75,152.68,3.2747]
[1729003370316,1.0789828,152.84,152.72,40.92]
[1729003370515,1.0789828,152.81,152.72,40.92]
[1729003370815,40.92,152.82,152.69,40.92]
[1729003371016,40.92,152.85,152.72,40.92]
[1729003371214,3.2729,152.78,152.72,44.194]
[1729003371418,40.92,152.77,152.64,40.92]
[1729003371608,40.92,152.77,152.63,70.82]
[1729003372116,40.92,152.74,152.59,43.5459]
[1729003372318,3.2743,152.71,152.66,3.2753]
[1729003372612,40.92,152.8,152.64,40.92]
[1729003372808,40.92,152.8,152.67,40.92]
[1729003373013,3.2737,152.74,152.68,3.2749]
[1729003373214,40.92,152.8,152.68,3.2749]
[1729003373811,40.92,152.8,152.67,40.92]
[1729003374415,40.92,152.8,152.59,2.6259]
[1729003374416,3.2746,152.7,152.62,40.92]
[1729003374613,40.92,152.74,152.62,40.92]
[1729003374815,40.92,152.77,152.68,3.2749]
[1729003375008,3.2748,152.69,152.61,40.92]
[1729003375216,40.92,152.76,152.63,40.92]
[1729003375421,40.92,152.76,152.67,3.275]
[1729003375719,40.92,152.76,152.63,40.92]
[1729003375921,40.92,152.73,152.6,3.2766]
[1729003376220,3.2748,152.69,152.59,2.6259]
[1729003376413,40.92,152.71,152.59,2.6259]
[1729003376719,40.92,152.66,152.55,40.92]
[1729003376912,40.92,152.66,152.52,44.12239811]
[1729003377111,40.92,152.63,152.51,2.7428]
[1729003377720,3.2777,152.56,152.5,70.76]
[1729003377924,40.92,152.66,152.53,40.92]
[1729003378214,3.2774,152.57,152.5,70.76]
[1729003378616,2.7757,152.72,152.5,111.68]
[1729003378924,3.2769,152.59,152.5,111.68]
[1729003379113,40.92,152.8,152.5,111.68]
[1729003379114,1.07947452,152.71,152.58,40.92]
[1729003379315,3.2747,152.7,152.65,3.2755]
[1729003379512,1.07947452,152.71,152.58,40.92]
[1729003379712,1.07947452,152.71,152.6,3.2765]
[1729003380011,1.07947452,152.71,152.58,40.92]
[1729003380420,1.07947452,152.71,152.57,40.92]
[1729003380610,1.07947452,152.71,152.6,40.92]
[1729003381527,40.92,152.8,152.54,40.92]
[1729003381528,40.92,152.69,152.54,40.92]
[1729003381714,40.92,152.64,152.51,40.92]
[1729003381910,40.92,152.66,152.52,3.2782]
[1729003382109,40.92,152.66,152.5,70.78]
[1729003382110,40.92,152.66,152.54,40.92]
[1729003382314,40.92,152.64,152.5,70.78]
[1729003382520,40.92,152.64,152.52,40.92]
[1729003382709,40.92,152.66,152.5,74.00411005]
[1729003382914,40.92,152.58,152.5,3.22411005]
[1729003383130,40.92,152.58,152.47,40.92]
[1729003383313,1.3963,152.67,152.54,40.92]
[1729003383515,40.92,152.66,152.43,4.62740666]
[1729003383717,40.92,152.63,152.49,40.92]
[1729003384024,40.92,152.61,152.46,40.92]
[1729003384323,1.3963,152.67,152.55,40.92]
[1729003384525,40.92,152.76,152.62,40.92]
[1729003384823,1.07853751,152.75,152.65,40.92]
[1729003385020,40.92,152.74,152.63,3.276]
[1729003385222,3.2747,152.7,152.65,40.92]
[1729003385525,40.92,152.8,152.67,40.92]
[1729003385723,40.92,152.72,152.58,2.6668]
[1729003386224,3.2758,152.64,152.58,1.3013]
[1729003386526,40.92,152.72,152.58,1.3013]
[1729003386721,3.2769,152.6,152.5,1.3655]
[1729003386936,40.92,152.64,152.51,40.92]
[1729003387226,3.2764,152.62,152.5,40.92]
[1729003387525,40.92,152.56,152.43,1.3655]
[1729003387722,40.92,152.53,152.4,40.92]
[1729003387926,40.92,152.56,152.42,40.92]
[1729003388226,40.92,152.56,152.39,40.92]
[1729003388422,40.92,152.53,152.39,40.92]
[1729003388616,40.92,152.56,152.39,40.92]
[1729003389020,40.92,152.51,152.37,40.92]
[1729003389219,40.92,152.48,152.34,40.92]
[1729003389420,40.92,152.43,152.29,40.92]
[1729003389928,40.92,152.46,152.32,40.92]
[1729003390230,111.74,152.48,152.32,40.92]
[1729003390527,3.2794,152.48,152.42,40.92]
[1729003390727,40.92,152.55,152.42,3.2805]
[1729003390923,40.92,152.49,152.37,40.92]
[1729003391327,40.92,152.49,152.35,40.92]
[1729003391527,40.92,152.46,152.32,40.92]
[1729003391724,40.92,152.5,152.38,40.92]
[1729003391924,1.3237,152.53,152.4,40.92]
[1729003392131,42.31,152.65,152.35,40.92]
[1729003392132,40.92,152.6,152.48,40.92]
[1729003392520,40.92,152.58,152.43,40.92]
[1729003393033,40.92,152.63,152.51,40.92]
[1729003393426,40.92,152.56,152.42,3.2805]
[1729003393618,40.92,152.56,152.41,40.92]
[1729003393821,3.2814,152.38,152.18,70.84]
[1729003394026,40.92,152.48,152.33,40.92]
[1729003394323,3.2802,152.44,152.33,40.92]
[1729003394520,3.2802,152.44,152.27,1.3455]
[1729003394521,1.3749,152.55,152.41,40.92]
[1729003394727,42.2949,152.55,152.41,40.92]
[1729003394923,3.2796,152.47,152.41,40.92]
[1729003395224,42.2949,152.55,152.42,3.2805]
[1729003395427,3.2788,152.51,152.44,40.92]
[1729003395730,70.84,152.56,152.47,44.1994]
[1729003395918,3.2779,152.55,152.49,40.92]
[1729003396123,72.2149,152.64,152.52,40.92]
[1729003396319,70.84,152.64,152.52,3.2783]
[1729003396520,40.92,152.59,152.47,40.92]
[1729003396720,40.92,152.62,152.47,40.92]
[1729003397021,40.92,152.62,152.42,1.3455]
[1729003397022,40.92,152.62,152.5,40.92]
[1729003397419,70.84,152.64,152.53,40.92]
[1729003397726,70.84,152.64,152.55,40.92]
[1729003398025,1.39,152.65,152.55,40.92]
[1729003398230,6.84545276,152.77,152.63,40.92]
[1729003398231,44.9771,152.77,152.63,40.92]
[1729003398529,44.24491472,152.74,152.58,40.92]
[1729003398832,40.92,152.74,152.58,40.92]
[1729003399023,40.92,152.74,152.59,3.2767]
[1729003399222,40.92,152.74,152.61,40.92]
[1729003399525,40.92,152.71,152.58,40.92]
[1729003399732,40.92,152.74,152.58,40.92]
[1729003400127,3.275,152.68,152.58,40.92]
[1729003400327,3.31268784,152.73,152.58,40.92]
[1729003400625,2.0,152.72,152.63,40.92]
[1729003400833,3.2752,152.67,152.63,40.92]
[1729003401127,40.92,152.71,152.58,40.92]
[1729003401427,40.92,152.63,152.5,1.3345]
[1729003401632,40.92,152.66,152.5,1.3345]
[1729003401826,40.92,152.66,152.54,40.92]
[1729003402221,40.92,152.68,152.54,40.92]
[1729003402427,40.92,152.71,152.57,40.92]
[1729003402626,40.92,152.68,152.54,40.92]
[1729003402824,40.92,152.63,152.5,1.3345]
[1729003403025,40.92,152.66,152.54,40.92]
[1729003403226,40.92,152.68,152.54,40.92]
[1729003403427,3.2769,152.59,152.57,40.92]
[1729003403623,40.92,152.71,152.57,40.92]
[1729003404029,2.0,152.72,152.64,40.92]
[1729003404224,2.0,152.72,152.64,44.1957]
[1729003404427,2.0,152.72,152.64,40.92]
[1729003404930,5.2741,152.72,152.7,40.92]
[1729003405224,2.0,152.72,152.65,40.92]
[1729003405424,2.0,152.72,152.67,40.92]
[1729003405625,3.2743,152.71,152.7,40.92]
[1729003405828,2.0,152.72,152.67,40.92]
[1729003406333,70.82,152.84,152.7,40.92]
[1729003406532,3.2723,152.81,152.74,40.92]
[1729003406724,1.08161821,152.83,152.74,40.92]
[1729003407126,1.08161821,152.83,152.69,1.3116]
[1729003407127,1.08161821,152.83,152.79,40.92]
[1729003407532,1.08161821,152.83,152.69,1.3116]
[1729003407726,40.92,152.88,152.75,40.92]
[1729003408043,40.92,152.91,152.75,40.92]
[1729003408233,1.08205342,152.82,152.78,40.92]
[1729003408731,40.92,152.89,152.78,40.92]
[1729003409132,15.60653998,152.93,152.8,40.92]
[1729003409340,1.2932,152.99,152.86,40.92]
[1729003409536,40.92,153.03,152.89,40.92]
[1729003409742,3.2691,152.96,152.89,40.92]
[1729003410134,3.2687,152.97,152.89,40.92]
[1729003410841,3.2683,153.0,152.92,40.92]
[1729003411041,40.92,153.05,152.89,40.92]
[1729003411242,40.92,153.0,152.86,40.92]
[1729003411630,40.92,152.95,152.84,40.92]
[1729003411830,40.92,152.95,152.82,1.3402]
[1729003411831,40.92,152.93,152.82,1.3402]
[1729003412136,40.92,152.9,152.78,40.92]
[1729003412541,3.2709,152.88,152.78,44.1928]
[1729003412741,40.92,152.92,152.78,40.92]
[1729003412936,3.2708,152.88,152.78,44.1926]
[1729003413139,40.92,152.92,152.8,40.92]
[1729003413342,40.92,152.9,152.78,40.92]
[1729003413543,40.92,152.88,152.75,40.92]
[1729003413848,40.92,152.9,152.75,40.92]
[1729003414049,3.2711,152.86,152.77,3.273]
[1729003414343,40.92,152.9,152.78,40.92]
[1729003414741,40.92,152.93,152.78,40.92]
[1729003415138,111.66,152.98,152.83,40.92]
[1729003415342,111.66,152.98,152.85,40.92]
[1729003415541,1.3794,153.02,152.88,40.92]
[1729003415743,40.92,153.0,152.86,40.92]
[1729003416041,40.92,153.0,152.89,40.92]
[1729003416242,3.268,153.01,152.94,40.92]
[1729003416542,40.92,153.07,152.94,40.92]
[1729003416842,40.92,153.11,152.96,40.92]
[1729003417142,40.92,153.09,152.96,40.92]
[1729003417335,40.92,153.11,152.98,44.1883]
[1729003417542,40.92,153.11,152.98,40.92]
[1729003417738,40.92,153.09,152.96,40.92]
[1729003417940,1.3794,153.12,153.0,40.92]
[1729003418143,3.30846616,153.16,153.03,40.92]
[1729003418348,3.2671,153.07,153.03,40.92]
[1729003418549,40.92,153.16,153.03,40.92]
[1729003418744,40.92,153.11,152.98,40.92]
[1729003418941,1.07560945,153.15,153.03,40.92]
[1729003419247,40.92,153.11,152.98,42.2811]
[1729003419451,3.268,153.02,152.98,1.3611]
[1729003419652,40.92,153.08,152.98,1.3611]
[1729003419840,40.92,153.11,152.98,42.2811]
[1729003420040,40.92,153.13,153.0,40.92]
[1729003420246,40.92,153.16,153.0,40.92]
[1729003420448,3.2674,153.05,153.0,40.92]
[1729003420648,40.92,153.03,152.89,40.92]
[1729003421052,3.2692,152.97,152.86,42.2811]
[1729003421256,40.92,153.0,152.86,42.2811]
[1729003421442,70.66,153.06,152.8,40.92]
[1729003421443,40.92,152.95,152.8,40.92]
[1729003421749,40.92,152.93,152.8,40.92]
[1729003422144,3.2715,152.86,152.8,40.92]
[1729003422448,40.92,152.91,152.78,40.92]
[1729003422654,3.2718,152.85,152.78,40.92]
[1729003422850,40.92,152.91,152.78,40.92]
[1729003423155,3.2712,152.88,152.78,40.92]
[1729003423353,40.92,152.93,152.81,40.92]
[1729003423649,3.271,152.88,152.83,40.92]
[1729003423955,1.07222563,152.9,152.81,40.92]
[1729003424142,3.2712,152.88,152.83,40.92]
[1729003424346,116.34192576,152.95,152.83,40.92]
[1729003424553,1.07296744,152.94,152.83,40.92]
[1729003424857,116.34192576,152.95,152.83,40.92]
[1729003425351,40.92,152.92,152.78,40.92]
[1729003425552,1.07256814,152.94,152.81,40.92]
[1729003425751,2.14597518,152.94,152.81,40.92]
[1729003426352,2.14597518,152.94,152.73,1.385]